Workbook

Sheet Calculator
A6: TARIFF CALCULATOR ICGB
A9: Entry point | C9: Komotini
A11: Exit point | C11: Stara Zagora
A13: Product | C13: Daily
A15: Flow type | C15: FFF
A17: Period | C17: 3
A18: =IF($C$13="monthly",VLOOKUP($C$17,'Help sheet'!I:J,2,0),IF($C$13="daily","daily",IF($C$13="within day","within day",IF($C$13="quarterly",IFERROR(VLOOKUP($C$17,'Help sheet'!L:M,2,0),"not allowed start of quarterly period"),IF($C$13="annual",IFERROR(VLOOKUP($C$17,'Help sheet'!O:P,2,0),"not allowed start of annual period")))))) -> daily
A26: Reserved capacity | C26: 0 | D26: =IF($C$13="Annual","kWh/D/year",IF($C$13="Quarterly","kWh/D/quarter",IF($C$13="Monthly","kWh/D/month",IF($C$13="Daily","kWh/day",IF($C$13="Within day","kWh/Within day"))))) -> kWh/day
A27: * Please insert the quantity for one Gas day within the relevant period
A29: ENT | C29: =IF($C$9=$C$11,"Error",IF(AND($C$15="FFF",$C$9="Stara Zagora"),"Error",IF(AND($C$15="IFF",$C$9="Stara Zagora"),"Error",IF(AND($C$15="IRF",$C$9="Komotini"),"Error",IF($A$18="not allowed start of annual period","Error",INDEX('Tariff kWh-d-T'!$D$19:$I$22,MATCH(Calculator!$C$15,'Tariff kWh-d-T'!$D$19:$D$22,0),MATCH(Calculator!$C$13,'Tariff kWh-d-T'!$D$19:$I$19,0))))))) -> 0.000367 | D29: ЕUR/kWh/Gas day/Duration
A30: EXT | C30: =IF($C$9=$C$11,"Error",IF(AND($C$15="FFF",$C$9="Stara Zagora"),"Error",IF(AND($C$15="IFF",$C$9="Stara Zagora"),"Error",IF(AND($C$15="IRF",$C$9="Komotini"),"Error",IF($A$18="not allowed start of annual period","Error",INDEX('Tariff kWh-d-T'!$D$27:$I$30,MATCH(Calculator!$C$15,'Tariff kWh-d-T'!$D$27:$D$30,0),MATCH(Calculator!$C$13,'Tariff kWh-d-T'!$D$27:$I$27,0))))))) -> 0.00179 | D30: ЕUR/kWh/Gas day/Duration
A31: Total | C31: =IFERROR(C29+C30,"Error") -> 0.002157 | D31: ЕUR/kWh/Gas day/Duration
A34: ENT fee | C34: =IFERROR($C$26*C29,"Error") -> 0 | D34: =IF($C$13="Annual","EUR/year",IF($C$13="Quarterly","EUR/quarter",IF($C$13="Monthly","EUR/month",IF($C$13="Daily","EUR/day",IF($C$13="Within day","EUR/Within day"))))) -> EUR/day
A35: EXT fee | C35: =IFERROR($C$26*C30,"Error") -> 0 | D35: =IF($C$13="Annual","EUR/year",IF($C$13="Quarterly","EUR/quarter",IF($C$13="Monthly","EUR/month",IF($C$13="Daily","EUR/day",IF($C$13="Within day","EUR/Within day"))))) -> EUR/day
A36: Total fee | C36: =IFERROR($C$26*C31,"Error") -> 0 | D36: EUR/day

Sheet Help sheet (hidden)
A1: Entry point | C1: Exit point | E1: Product | G1: Period | I1: Id | J1: Period duration - monthly | L1: Id | M1: Period duration - quarterly | O1: Id | P1: Period duration - quarterly | R1: Tariff coefficients | U1: ENT/EXT coefficients
A2: Komotini | C2: Komotini | E2: Annual | G2: October 2023 | I2: 1 | J2: 01.10.2023 - 31.10.2023 | L2: 1 | M2: 01.10.2023 - 31.12.2023 | O2: 1 | P2: 01.10.2023 - 30.09.2024 | R2: FFF | S2: 1 | U2: ENT Forward Flow | V2: 0.17
A3: Stara Zagora | C3: Stara Zagora | E3: Quarterly | G3: November 2023 | I3: 2 | J3: 01.11.2023 - 30.11.2023 | L3: 2 | M3: 01.11.2023 - 31.01.2024 | R3: IFF | S3: 0.9 | U3: EXT Forward Flow | V3: 0.83
E4: Monthly | G4: December 2023 | I4: 3 | J4: 01.12.2023 - 31.12.2023 | L4: 3 | M4: 01.12.2023 - 28.02.2024 | R4: IRF | S4: 0.15 | U4: ENT Reverse Flow | V4: 0.83
E5: Daily | G5: January 2024 | I5: 4 | J5: 01.01.2024 - 31.01.2024 | L5: 4 | M5: 01.01.2024 - 31.03.2024 | R5: FRF | S5: 0.25 | U5: EXT Reverse Flow | V5: 0.17
E6: Within day | G6: February 2024 | I6: 5 | J6: 01.02.2024 - 28.02.2024 | L6: 5 | M6: 01.02.2024 - 30.04.2024
G7: March 2024 | I7: 6 | J7: 01.03.2024 - 31.03.2024 | L7: 6 | M7: 01.03.2024 - 31.05.2024
G8: April 2024 | I8: 7 | J8: 01.04.2024 - 30.04.2024 | L8: 7 | M8: 01.04.2024 - 30.06.2024
G9: May 2024 | I9: 8 | J9: 01.05.2024 - 31.05.2024 | L9: 8 | M9: 01.05.2024 - 31.07.2024
G10: June 2024 | I10: 9 | J10: 01.06.2024 - 30.06.2024 | L10: 9 | M10: 01.06.2024 - 31.08.2024
G11: July 2024 | I11: 10 | J11: 01.07.2024 - 31.07.2024 | L11: 10 | M11: 01.07.2024 - 30.09.2024
G12: August 2024 | I12: 11 | J12: 01.08.2024 - 31.08.2024
G13: September 2024 | I13: 12 | J13: 01.09.2024 - 30.09.2024

Sheet Tariff kWh-d-T (hidden)
B1: Tariff coefficients | E1: ENT/EXT coefficients
B2: FFF | C2: 1 | E2: ENT Forward Flow | F2: 0.17 | H2: Hours per year | I2: =8760 -> 8760
B3: IFF | C3: 0.9 | E3: EXT Forward Flow | F3: 0.83 | H3: H/day | I3: 24
B4: IRF | C4: 0.15 | E4: ENT Reverse Flow | F4: 0.83
B5: FRF | C5: 0.25 | E5: EXT Reverse Flow | F5: 0.17
B7: NRT(COD)
B8: €/kNcm/y | C8: 16.99
B9: €/kWh | C9: =C8*9.764*10^-5 -> 0.0016589036 | D9: *Tariff Code, 2.5 Conversion Values
F11: Yearly Capacity | G11: Quarterly capacity | H11: Monthly capacity | I11: Daily capacity
E12: Days in period | F12: 365 | G12: =F12/4 -> 91.25 | H12: =F12/12 -> 30.41666667 | I12: 1
F17: Coefficient
F18: 1 | G18: 1.1 | H18: 1.2 | I18: 1.3
D19: Type of product | E19: IP | F19: ANNUAL | G19: QUARTERLY | H19: MONTHLY | I19: DAILY
D20: FFF | E20: ENT | F20: =ROUND($F$2*$C$9*$I$2/$I$3,6) -> 0.102935 | G20: =ROUND($F$2*$C$9*$I$2/$I$3*1.1*$G$12/$F$12,6) -> 0.028307 | H20: =ROUND($F$2*$C$9*$I$2/$I$3*1.2*$H$12/$F$12,6) -> 0.010293 | I20: =ROUND($F$2*$C$9*$I$2/$I$3*1.3/$F$12,6) -> 0.000367
D21: IFF | E21: ENT | F21: =ROUND($F$2*$C$9*$C$3*$I$2/$I$3,6) -> 0.092641 | G21: =ROUND($F$2*$C$9*$C$3*$I$2/$I$3*1.1*$G$12/$F$12,6) -> 0.025476 | H21: =ROUND($F$2*$C$9*$C$3*$I$2/$I$3*1.2*$H$12/$F$12,6) -> 0.009264 | I21: =ROUND($F$2*$C$9*$C$3*$I$2/$I$3*1.3/$F$12,6) -> 0.00033
D22: IRF | E22: ENT | F22: =ROUND($F$4*$C$9*$C$4*$I$2/$I$3,6) -> 0.075385 | G22: =ROUND($F$4*$C$9*$C$4*$I$2/$I$3*1.1*$G$12/$F$12,6) -> 0.020731 | H22: =ROUND($F$4*$C$9*$C$4*$I$2/$I$3*1.2*$H$12/$F$12,6) -> 0.007538 | I22: =ROUND($F$4*$C$9*$C$4*$I$2/$I$3*1.3/$F$12,6) -> 0.000268
F25: Coefficient
F26: 1 | G26: 1.1 | H26: 1.2 | I26: 1.3
D27: Type of product | E27: IP | F27: ANNUAL | G27: QUARTERLY | H27: MONTHLY | I27: DAILY
D28: FFF | E28: EXT | F28: =ROUND($F$3*$C$9*$I$2/$I$3,6) -> 0.502565 | G28: =ROUND($F$3*$C$9*$I$2/$I$3*1.1*$G$12/$F$12,6) -> 0.138205 | H28: =ROUND($F$3*$C$9*$I$2/$I$3*1.2*$H$12/$F$12,6) -> 0.050256 | I28: =ROUND($F$3*$C$9*$I$2/$I$3/$F$12*1.3,6) -> 0.00179
D29: IFF | E29: EXT | F29: =ROUND($F$3*$C$9*$C$3*$I$2/$I$3,6) -> 0.452308 | G29: =ROUND($F$3*$C$9*$C$3*$I$2/$I$3*1.1*$G$12/$F$12,6) -> 0.124385 | H29: =ROUND($F$3*$C$9*$C$3*$I$2/$I$3*1.2*$H$12/$F$12,6) -> 0.045231 | I29: =ROUND($F$3*$C$9*$C$3*$I$2/$I$3*1.3/$F$12,6) -> 0.001611
D30: IRF | E30: EXT | F30: =ROUND($F$5*$C$9*$C$4*$I$2/$I$3,6) -> 0.01544 | G30: =ROUND($F$5*$C$9*$C$4*$I$2/$I$3*1.1*$G$12/$F$12,6) -> 0.004246 | H30: =ROUND($F$5*$C$9*$C$4*$I$2/$I$3*1.2*$H$12/$F$12,6) -> 0.001544 | I30: =ROUND($F$5*$C$9*$C$4*$I$2/$I$3*1.3/$F$12,6) -> 5.5e-05
E56: Tariffs are per Capacity products in ЕUR/kWh/Gas day/ for calendar 2022
E58: check FFF | F58: =(F20+F28)-ROUND($C$9*I2/I3,6) -> 0 | G58: =(G20+G28)-ROUND($C$9*1.1*I2/I3*G12/F12,6) -> 0 | H58: =(H20+H28)-ROUND($C$9*1.2*$H$12/$F$12*I2/I3,6) -> -1e-06 | I58: =(I20+I28)-ROUND($C$9*1.3,6) -> 0
E59: check IFF | F59: =(F21+F29)-ROUND($C$9*$C$3*I2/I3,6) -> -1e-06 | G59: =(G21+G29)-ROUND($C$9*$C$3*1.1*I2/I3*G12/F12,6) -> 0 | H59: =(H21+H29)-ROUND($C$9*$C$3*1.2*$H$12/$F$12*I2/I3,6) -> 0 | I59: =(I21+I29)-ROUND($C$9*$C$3*1.3,6) -> 0
E60: check IRF | F60: =(F22+F30)-ROUND($C$9*$C$4*I2/I3,6) -> 0 | G60: =(G22+G30)-ROUND($C$9*$C$4*1.1*I2/I3*G12/F12,6) -> 0 | H60: =(H22+H30)-ROUND($C$9*$C$4*1.2*$H$12/$F$12*I2/I3,6) -> 0 | I60: =(I22+I30)-ROUND($C$9*$C$4*1.3,6) -> 0
